[Event "Betsys MČR v online bleskovém šachu 2021"]
[Site "Chess.com"]
[Date "2021.04.17"]
[Round "9"]
[White "keram91"]
[Black "Sorcercream"]
[Result "0-1"]
[WhiteElo "764"]
[BlackElo "1047"]
[TimeControl "180+1"]
[EndTime "10:28:05 PDT"]
[Termination "Uživatel Sorcercream zvítězil matem"]

1. d4 {[%clk 0:03:00.9]} 1... d5 {[%clk 0:02:59.4]} 2. Nc3 {[%clk 0:02:59.2]}
2... Nf6 {[%clk 0:02:59.3]} 3. f3 {[%clk 0:02:59]} 3... e6 {[%clk 0:02:59.2]} 4.
Bf4 {[%clk 0:02:55.5]} 4... c5 {[%clk 0:02:55.7]} 5. dxc5 {[%clk 0:02:50.7]}
5... Bxc5 {[%clk 0:02:53.4]} 6. Nh3 {[%clk 0:02:50.5]} 6... Nc6 {[%clk
0:02:47.7]} 7. Nb5 {[%clk 0:02:47.9]} 7... e5 {[%clk 0:02:39.3]} 8. Bxe5 {[%clk
0:02:40.2]} 8... Nxe5 {[%clk 0:02:36]} 9. c3 {[%clk 0:02:34.4]} 9... Bd7 {[%clk
0:02:29.3]} 10. a4 {[%clk 0:02:33]} 10... a6 {[%clk 0:02:28.9]} 11. Nd4 {[%clk
0:02:28.9]} 11... O-O {[%clk 0:02:23.8]} 12. Ng5 {[%clk 0:02:25.4]} 12... Re8
{[%clk 0:02:16.4]} 13. f4 {[%clk 0:02:23.2]} 13... Nc4 {[%clk 0:02:03.7]} 14.
Qd3 {[%clk 0:02:09.7]} 14... Nxb2 {[%clk 0:01:55.4]} 15. Qh3 {[%clk 0:01:56.2]}
15... Bxh3 {[%clk 0:01:47.6]} 16. gxh3 {[%clk 0:01:53.3]} 16... Ne4 {[%clk
0:01:37.3]} 17. Ngf3 {[%clk 0:01:43.9]} 17... Nxc3 {[%clk 0:01:31.6]} 18. Rc1
{[%clk 0:01:39.3]} 18... Nbxa4 {[%clk 0:01:27.3]} 19. Ra1 {[%clk 0:01:31.4]}
19... Qf6 {[%clk 0:01:20.2]} 20. h4 {[%clk 0:01:21]} 20... Bxd4 {[%clk
0:01:17.6]} 21. Nxd4 {[%clk 0:01:16.2]} 21... Qxd4 {[%clk 0:01:17.5]} 22. Bh3
{[%clk 0:01:10.5]} 22... Rxe2+ {[%clk 0:01:12.2]} 23. Kf1 {[%clk 0:01:05.8]}
23... Qf2# {[%clk 0:01:12.2]} 0-1

[Event "Betsys MČR v online bleskovém šachu 2021"]
[Site "Chess.com"]
[Date "2021.04.17"]
[Round "9"]
[White "terezkai"]
[Black "pa9p"]
[Result "0-1"]
[WhiteElo "769"]
[BlackElo "1763"]
[TimeControl "180+1"]
[EndTime "10:28:06 PDT"]
[Termination "Uživatel pa9p zvítězil na čas"]

1. e4 {[%clk 0:03:00.9]} 1... d6 {[%clk 0:02:59.6]} 2. Bc4 {[%clk 0:02:52.4]}
2... g6 {[%clk 0:02:58.9]} 3. d4 {[%clk 0:02:47.3]} 3... Bg7 {[%clk 0:02:58.8]}
4. Nf3 {[%clk 0:02:43.5]} 4... Nf6 {[%clk 0:02:58.8]} 5. Nc3 {[%clk 0:02:40.4]}
5... O-O {[%clk 0:02:58.3]} 6. O-O {[%clk 0:02:33.6]} 6... Nbd7 {[%clk
0:02:58.3]} 7. Bf4 {[%clk 0:02:25.1]} 7... c5 {[%clk 0:02:54.3]} 8. dxc5 {[%clk
0:02:22.5]} 8... Nxc5 {[%clk 0:02:53.2]} 9. b3 {[%clk 0:02:01.3]} 9... Nfxe4
{[%clk 0:02:39.4]} 10. Nxe4 {[%clk 0:01:58.2]} 10... Bxa1 {[%clk 0:02:37.8]} 11.
Qxa1 {[%clk 0:01:51]} 11... Nxe4 {[%clk 0:02:34.7]} 12. Re1 {[%clk 0:01:45.4]}
12... Nf6 {[%clk 0:02:33.1]} 13. Bh6 {[%clk 0:01:38.2]} 13... Re8 {[%clk
0:02:31.4]} 14. Bb5 {[%clk 0:01:35.5]} 14... Bd7 {[%clk 0:02:30.6]} 15. Bxd7
{[%clk 0:01:31.2]} 15... Qxd7 {[%clk 0:02:29.9]} 16. Ng5 {[%clk 0:00:16.6]}
16... Qf5 {[%clk 0:02:24.7]} 17. f3 {[%clk 0:00:12]} 17... Rac8 {[%clk
0:02:20.4]} 18. c4 {[%clk 0:00:02.8]} 18... Qc5+ {[%clk 0:02:06.6]} 0-1

[Event "Betsys MČR v online bleskovém šachu 2021"]
[Site "Chess.com"]
[Date "2021.04.17"]
[Round "9"]
[White "Cimrman"]
[Black "krystofkrizek1"]
[Result "1-0"]
[WhiteElo "2339"]
[BlackElo "2137"]
[TimeControl "180+1"]
[EndTime "10:28:19 PDT"]
[Termination "Uživatel Cimrman zvítězil po vzdání soupeře"]

1. d4 {[%clk 0:03:00.9]} 1... Nf6 {[%clk 0:02:56.8]} 2. c4 {[%clk 0:03:00.4]}
2... e6 {[%clk 0:02:53.3]} 3. g3 {[%clk 0:03:00]} 3... Be7 {[%clk 0:02:51.5]} 4.
Bg2 {[%clk 0:02:59]} 4... d5 {[%clk 0:02:48.7]} 5. Nf3 {[%clk 0:02:57.8]} 5...
O-O {[%clk 0:02:46.5]} 6. O-O {[%clk 0:02:57.7]} 6... b6 {[%clk 0:02:44.6]} 7.
Qc2 {[%clk 0:02:54.9]} 7... Bb7 {[%clk 0:02:44.5]} 8. cxd5 {[%clk 0:02:43.5]}
8... Nxd5 {[%clk 0:02:32.3]} 9. a3 {[%clk 0:02:41.1]} 9... Nf6 {[%clk
0:02:22.9]} 10. Nc3 {[%clk 0:02:40.3]} 10... Nbd7 {[%clk 0:02:19.9]} 11. e4
{[%clk 0:02:31.2]} 11... Qc8 {[%clk 0:02:04.7]} 12. Bf4 {[%clk 0:02:26.8]} 12...
c5 {[%clk 0:02:04.1]} 13. d5 {[%clk 0:02:26.8]} 13... exd5 {[%clk 0:01:57.6]}
14. exd5 {[%clk 0:02:27.7]} 14... Nxd5 {[%clk 0:01:53.7]} 15. Bd2 {[%clk
0:02:18.1]} 15... N7f6 {[%clk 0:01:43]} 16. Rfe1 {[%clk 0:02:16.4]} 16... Re8
{[%clk 0:01:33.1]} 17. Ng5 {[%clk 0:02:05.4]} 17... Nxc3 {[%clk 0:00:46.1]} 18.
Bxc3 {[%clk 0:02:06.3]} 18... Bxg2 {[%clk 0:00:32.3]} 19. Bxf6 {[%clk
0:02:02.3]} 19... g6 {[%clk 0:00:26.5]} 20. Bxe7 {[%clk 0:01:44.7]} 1-0

[Event "Betsys MČR v online bleskovém šachu 2021"]
[Site "Chess.com"]
[Date "2021.04.17"]
[Round "9"]
[White "Klokan64"]
[Black "NikolaKusova"]
[Result "1-0"]
[WhiteElo "1417"]
[BlackElo "1050"]
[TimeControl "180+1"]
[EndTime "10:28:20 PDT"]
[Termination "Uživatel Klokan64 zvítězil matem"]

1. d4 {[%clk 0:03:00.9]} 1... d5 {[%clk 0:02:54.6]} 2. Nf3 {[%clk 0:03:00.3]}
2... Nc6 {[%clk 0:02:51.4]} 3. Bg5 {[%clk 0:02:55.8]} 3... Nf6 {[%clk
0:02:49.7]} 4. e3 {[%clk 0:02:55.3]} 4... e6 {[%clk 0:02:45.4]} 5. c3 {[%clk
0:02:54.6]} 5... Bd6 {[%clk 0:02:41.3]} 6. Bd3 {[%clk 0:02:53.3]} 6... O-O
{[%clk 0:02:33.3]} 7. Qc2 {[%clk 0:02:52]} 7... Re8 {[%clk 0:02:23.1]} 8. Bxh7+
{[%clk 0:02:47.6]} 8... Nxh7 {[%clk 0:02:17.3]} 9. Bxd8 {[%clk 0:02:46.2]} 9...
Rxd8 {[%clk 0:02:12.4]} 10. Nbd2 {[%clk 0:02:44.5]} 10... Re8 {[%clk 0:02:03]}
11. h4 {[%clk 0:02:43.6]} 11... f6 {[%clk 0:01:44.1]} 12. O-O-O {[%clk
0:02:37.1]} 12... e5 {[%clk 0:01:35.5]} 13. dxe5 {[%clk 0:02:33.6]} 13... fxe5
{[%clk 0:01:33.9]} 14. Ng5 {[%clk 0:02:31.6]} 14... Nxg5 {[%clk 0:01:20.8]} 15.
hxg5 {[%clk 0:02:30.2]} 15... Rf8 {[%clk 0:01:18.4]} 16. Qh7+ {[%clk 0:02:28.3]}
16... Kf7 {[%clk 0:01:17.2]} 17. g6+ {[%clk 0:02:24.7]} 17... Ke8 {[%clk
0:01:15.2]} 18. Qxg7 {[%clk 0:02:23]} 18... e4 {[%clk 0:01:09]} 19. Rh8 {[%clk
0:02:19.3]} 19... Be5 {[%clk 0:01:05.9]} 20. Qxf8+ {[%clk 0:02:17.4]} 20... Kd7
{[%clk 0:01:04.9]} 21. Rh7+ {[%clk 0:02:14.9]} 21... Ke6 {[%clk 0:01:03.7]} 22.
Qf7+ {[%clk 0:02:03.3]} 22... Kd6 {[%clk 0:01:01.4]} 23. g7 {[%clk 0:01:58.9]}
23... Be6 {[%clk 0:00:58.6]} 24. Qg6 {[%clk 0:01:56.1]} 24... Rg8 {[%clk
0:00:36.1]} 25. Nxe4+ {[%clk 0:01:55.2]} 25... Ke7 {[%clk 0:00:32.7]} 26. Rh8
{[%clk 0:01:47.2]} 26... Rxg7 {[%clk 0:00:29.1]} 27. Qe8# {[%clk 0:01:44.6]} 1-0

[Event "Betsys MČR v online bleskovém šachu 2021"]
[Site "Chess.com"]
[Date "2021.04.17"]
[Round "9"]
[White "hoacin"]
[Black "HonzaVykouk"]
[Result "1-0"]
[WhiteElo "2624"]
[BlackElo "2675"]
[TimeControl "180+1"]
[EndTime "10:28:28 PDT"]
[Termination "Uživatel hoacin zvítězil po vzdání soupeře"]

1. e4 {[%clk 0:03:00.9]} 1... c5 {[%clk 0:02:59.6]} 2. Nf3 {[%clk 0:03:01]} 2...
d6 {[%clk 0:02:59.7]} 3. d4 {[%clk 0:03:01.4]} 3... cxd4 {[%clk 0:03:00.6]} 4.
Nxd4 {[%clk 0:03:02]} 4... Nf6 {[%clk 0:03:01.3]} 5. Nc3 {[%clk 0:03:02.5]} 5...
a6 {[%clk 0:03:02]} 6. Be3 {[%clk 0:03:01.5]} 6... e5 {[%clk 0:03:01.1]} 7. Nb3
{[%clk 0:03:00.4]} 7... Be6 {[%clk 0:03:01.6]} 8. f3 {[%clk 0:02:59.7]} 8... h5
{[%clk 0:03:02.2]} 9. Qd2 {[%clk 0:02:59.4]} 9... Nbd7 {[%clk 0:03:02.1]} 10.
Nd5 {[%clk 0:02:56]} 10... Bxd5 {[%clk 0:03:02]} 11. exd5 {[%clk 0:02:55.6]}
11... g6 {[%clk 0:03:02.9]} 12. Be2 {[%clk 0:02:53]} 12... Bg7 {[%clk
0:03:01.8]} 13. O-O {[%clk 0:02:52.2]} 13... O-O {[%clk 0:03:02.4]} 14. Na5
{[%clk 0:02:48.9]} 14... Qc7 {[%clk 0:03:02.3]} 15. c4 {[%clk 0:02:48.4]} 15...
Kh7 {[%clk 0:03:00.2]} 16. b4 {[%clk 0:02:47.2]} 16... Ng8 {[%clk 0:03:00.4]}
17. g4 {[%clk 0:02:43.8]} 17... f5 {[%clk 0:02:55.3]} 18. gxh5 {[%clk
0:02:42.9]} 18... gxh5 {[%clk 0:02:53.2]} 19. f4 {[%clk 0:02:42.7]} 19... exf4
{[%clk 0:02:40]} 20. Bd4 {[%clk 0:02:42.4]} 20... Be5 {[%clk 0:02:37.2]} 21.
Rxf4 {[%clk 0:02:35.3]} 21... Bxd4+ {[%clk 0:01:09.9]} 22. Qxd4 {[%clk
0:02:31.6]} 22... Ne5 {[%clk 0:01:10.7]} 23. Kh1 {[%clk 0:02:23.7]} 23... Qf7
{[%clk 0:00:55.2]} 24. Bxh5 {[%clk 0:02:21.5]} 24... Qf6 {[%clk 0:00:50.9]} 25.
Raf1 {[%clk 0:02:12.7]} 25... Nh6 {[%clk 0:00:50.3]} 26. c5 {[%clk 0:02:11]}
26... Qg5 {[%clk 0:00:31.1]} 27. cxd6 {[%clk 0:02:07.2]} 27... Qxh5 {[%clk
0:00:31.1]} 28. Qxe5 {[%clk 0:02:07]} 28... Ng4 {[%clk 0:00:31.8]} 29. Rxg4
{[%clk 0:01:47.8]} 29... fxg4 {[%clk 0:00:30.9]} 30. Qxh5+ {[%clk 0:01:46.5]}
1-0

[Event "Betsys MČR v online bleskovém šachu 2021"]
[Site "Chess.com"]
[Date "2021.04.17"]
[Round "9"]
[White "KJ327NR"]
[Black "Stalri"]
[Result "1-0"]
[WhiteElo "2344"]
[BlackElo "2203"]
[TimeControl "180+1"]
[EndTime "10:28:31 PDT"]
[Termination "Uživatel KJ327NR zvítězil po vzdání soupeře"]

1. e4 {[%clk 0:03:00.9]} 1... c5 {[%clk 0:03:00.1]} 2. Nf3 {[%clk 0:03:00.7]}
2... e6 {[%clk 0:02:59.6]} 3. g3 {[%clk 0:03:00.7]} 3... Nc6 {[%clk 0:02:58.4]}
4. Bg2 {[%clk 0:03:00.4]} 4... d5 {[%clk 0:02:53.2]} 5. exd5 {[%clk 0:03:00.1]}
5... exd5 {[%clk 0:02:52.8]} 6. d4 {[%clk 0:03:00.3]} 6... Nf6 {[%clk
0:02:50.2]} 7. O-O {[%clk 0:03:00]} 7... Be7 {[%clk 0:02:44.5]} 8. dxc5 {[%clk
0:02:55]} 8... O-O {[%clk 0:02:41.2]} 9. Bg5 {[%clk 0:02:53.2]} 9... h6 {[%clk
0:02:38]} 10. Bxf6 {[%clk 0:02:51.6]} 10... Bxf6 {[%clk 0:02:37]} 11. c3 {[%clk
0:02:51.9]} 11... Bg4 {[%clk 0:02:27.5]} 12. h3 {[%clk 0:02:51.3]} 12... Bxf3
{[%clk 0:02:26.5]} 13. Bxf3 {[%clk 0:02:50.7]} 13... d4 {[%clk 0:02:21.4]} 14.
cxd4 {[%clk 0:02:34.1]} 14... Qxd4 {[%clk 0:02:17.1]} 15. Nc3 {[%clk 0:02:04.9]}
15... Qxc5 {[%clk 0:02:13.9]} 16. Ne4 {[%clk 0:02:04.8]} 16... Qd4 {[%clk
0:02:07.8]} 17. Nxf6+ {[%clk 0:02:03]} 17... Qxf6 {[%clk 0:02:06.4]} 18. Bxc6
{[%clk 0:01:58.2]} 18... Qxc6 {[%clk 0:02:05]} 19. Rc1 {[%clk 0:01:58.1]} 19...
Qb6 {[%clk 0:02:04.3]} 20. b3 {[%clk 0:01:51.5]} 20... Rad8 {[%clk 0:02:03.1]}
21. Qc2 {[%clk 0:01:49.3]} 21... Qa5 {[%clk 0:02:00]} 22. Rfd1 {[%clk
0:01:46.4]} 22... a6 {[%clk 0:01:46.5]} 23. Kg2 {[%clk 0:01:34.6]} 23... Qd5+
{[%clk 0:01:45.2]} 24. Rxd5 {[%clk 0:01:32.9]} 24... Rxd5 {[%clk 0:01:39.9]} 25.
Qe4 {[%clk 0:01:29.7]} 25... Rb5 {[%clk 0:01:34.3]} 26. Rc7 {[%clk 0:01:22.1]}
26... Ra5 {[%clk 0:01:33.3]} 27. Qxb7 {[%clk 0:01:19.5]} 27... Rxa2 {[%clk
0:01:32.2]} 28. Rc8 {[%clk 0:01:18]} 28... a5 {[%clk 0:01:29.5]} 29. Rxf8+
{[%clk 0:01:16.5]} 29... Kxf8 {[%clk 0:01:29.4]} 30. Qd7 {[%clk 0:01:16.2]}
30... g6 {[%clk 0:01:26.7]} 31. Qd4 {[%clk 0:01:08.1]} 31... Kg8 {[%clk
0:01:21.7]} 32. h4 {[%clk 0:01:06.9]} 32... Ra3 {[%clk 0:01:18.2]} 33. Qb2
{[%clk 0:01:01.6]} 1-0

[Event "Betsys MČR v online bleskovém šachu 2021"]
[Site "Chess.com"]
[Date "2021.04.17"]
[Round "9"]
[White "horalek"]
[Black "matycz07"]
[Result "1-0"]
[WhiteElo "1333"]
[BlackElo "1008"]
[TimeControl "180+1"]
[EndTime "10:28:31 PDT"]
[Termination "Uživatel horalek zvítězil matem"]

1. e4 {[%clk 0:03:00.9]} 1... e5 {[%clk 0:02:56.2]} 2. Nf3 {[%clk 0:02:59.6]}
2... Nc6 {[%clk 0:02:47.7]} 3. Bb5 {[%clk 0:02:58.3]} 3... a6 {[%clk 0:02:43.8]}
4. Ba4 {[%clk 0:02:57.7]} 4... Nf6 {[%clk 0:02:43.3]} 5. d3 {[%clk 0:02:50.6]}
5... Bc5 {[%clk 0:02:39]} 6. O-O {[%clk 0:02:47.5]} 6... O-O {[%clk 0:02:38.3]}
7. Bg5 {[%clk 0:02:44.5]} 7... h6 {[%clk 0:02:32.9]} 8. Bh4 {[%clk 0:02:43]}
8... d6 {[%clk 0:02:31.8]} 9. Nc3 {[%clk 0:02:37.8]} 9... b5 {[%clk 0:02:20.3]}
10. Bb3 {[%clk 0:02:35.6]} 10... Nd4 {[%clk 0:02:19.1]} 11. Nd5 {[%clk
0:02:30.8]} 11... Nxb3 {[%clk 0:02:13.2]} 12. axb3 {[%clk 0:02:29.6]} 12... g5
{[%clk 0:02:11]} 13. Bg3 {[%clk 0:02:23.5]} 13... c6 {[%clk 0:02:02.5]} 14. Nc3
{[%clk 0:02:17.5]} 14... Bd4 {[%clk 0:01:47.5]} 15. Nxd4 {[%clk 0:02:15.3]}
15... exd4 {[%clk 0:01:47.3]} 16. Ne2 {[%clk 0:02:13.9]} 16... Bg4 {[%clk
0:01:44.1]} 17. f3 {[%clk 0:02:11]} 17... Bh5 {[%clk 0:01:43.9]} 18. Bf2 {[%clk
0:02:08.9]} 18... Qd7 {[%clk 0:01:34]} 19. Nxd4 {[%clk 0:02:03]} 19... c5 {[%clk
0:01:22.6]} 20. Nf5 {[%clk 0:02:00.9]} 20... b4 {[%clk 0:01:17.7]} 21. Ng3
{[%clk 0:01:53.1]} 21... Bxf3 {[%clk 0:01:00.2]} 22. Qxf3 {[%clk 0:01:48.6]}
22... h5 {[%clk 0:00:56]} 23. Qxf6 {[%clk 0:01:45.9]} 23... Rae8 {[%clk
0:00:50.4]} 24. Nxh5 {[%clk 0:01:42.6]} 24... Qf5 {[%clk 0:00:18.7]} 25. Qg7#
{[%clk 0:01:40.6]} 1-0

[Event "Betsys MČR v online bleskovém šachu 2021"]
[Site "Chess.com"]
[Date "2021.04.17"]
[Round "9"]
[White "Sunnika"]
[Black "DrStillestein"]
[Result "1-0"]
[WhiteElo "2294"]
[BlackElo "2101"]
[TimeControl "180+1"]
[EndTime "10:28:41 PDT"]
[Termination "Uživatel Sunnika zvítězil matem"]

1. d4 {[%clk 0:03:00.9]} 1... d5 {[%clk 0:02:59.9]} 2. c4 {[%clk 0:03:01.8]}
2... c6 {[%clk 0:03:00.2]} 3. Nf3 {[%clk 0:03:01.1]} 3... Nf6 {[%clk 0:03:00.3]}
4. Qc2 {[%clk 0:03:02]} 4... e6 {[%clk 0:02:56.9]} 5. Nbd2 {[%clk 0:02:58.2]}
5... Be7 {[%clk 0:02:56.9]} 6. e4 {[%clk 0:02:58.6]} 6... dxe4 {[%clk
0:02:55.1]} 7. Nxe4 {[%clk 0:02:59.5]} 7... O-O {[%clk 0:02:53.5]} 8. Be2 {[%clk
0:02:54]} 8... Nbd7 {[%clk 0:02:36.6]} 9. O-O {[%clk 0:02:51.8]} 9... Nxe4
{[%clk 0:02:37]} 10. Qxe4 {[%clk 0:02:51.7]} 10... Nf6 {[%clk 0:02:37.9]} 11.
Qc2 {[%clk 0:02:51.6]} 11... Qc7 {[%clk 0:02:30.2]} 12. b3 {[%clk 0:02:44]}
12... b6 {[%clk 0:02:28.4]} 13. c5 {[%clk 0:02:33.1]} 13... Rd8 {[%clk
0:02:13.1]} 14. Bb2 {[%clk 0:02:29]} 14... Nd5 {[%clk 0:02:11.9]} 15. Rfe1
{[%clk 0:02:22.5]} 15... Bf6 {[%clk 0:02:11.7]} 16. Rac1 {[%clk 0:02:19.2]}
16... b5 {[%clk 0:02:01.7]} 17. a3 {[%clk 0:02:11.3]} 17... a5 {[%clk
0:02:01.4]} 18. Bd3 {[%clk 0:02:09.8]} 18... g6 {[%clk 0:01:58.4]} 19. Ne5
{[%clk 0:02:08.9]} 19... Bxe5 {[%clk 0:01:51.8]} 20. Rxe5 {[%clk 0:02:08.2]}
20... Ba6 {[%clk 0:01:47]} 21. Be4 {[%clk 0:01:54.4]} 21... b4 {[%clk
0:01:40.2]} 22. a4 {[%clk 0:01:53.6]} 22... Ra7 {[%clk 0:01:32.5]} 23. Re1
{[%clk 0:01:46.1]} 23... Nf6 {[%clk 0:01:26.2]} 24. Bf3 {[%clk 0:01:45.1]} 24...
Qc8 {[%clk 0:01:18.5]} 25. h4 {[%clk 0:01:41.7]} 25... h5 {[%clk 0:01:17.1]} 26.
Qd2 {[%clk 0:01:39]} 26... Kg7 {[%clk 0:01:16.2]} 27. d5 {[%clk 0:01:29.7]}
27... cxd5 {[%clk 0:01:11.7]} 28. Rxh5 {[%clk 0:01:26.3]} 28... Qxc5 {[%clk
0:00:41.3]} 29. Qh6+ {[%clk 0:01:23.7]} 29... Kg8 {[%clk 0:00:37.2]} 30. Qh8#
{[%clk 0:01:24.6]} 1-0

[Event "Betsys MČR v online bleskovém šachu 2021"]
[Site "Chess.com"]
[Date "2021.04.17"]
[Round "9"]
[White "Bartusman"]
[Black "czlolcz"]
[Result "0-1"]
[WhiteElo "1980"]
[BlackElo "2175"]
[TimeControl "180+1"]
[EndTime "10:28:43 PDT"]
[Termination "Uživatel czlolcz zvítězil po vzdání soupeře"]

1. e4 {[%clk 0:03:00.9]} 1... e5 {[%clk 0:02:31.9]} 2. Nf3 {[%clk 0:03:00.6]}
2... Nf6 {[%clk 0:02:23.3]} 3. Nxe5 {[%clk 0:03:00.5]} 3... d6 {[%clk
0:02:23.3]} 4. Nxf7 {[%clk 0:03:00.9]} 4... Kxf7 {[%clk 0:02:22.6]} 5. d4 {[%clk
0:03:01.7]} 5... Be7 {[%clk 0:02:22]} 6. Nc3 {[%clk 0:02:55.2]} 6... Re8 {[%clk
0:02:20]} 7. Bc4+ {[%clk 0:02:51.9]} 7... Be6 {[%clk 0:02:19.2]} 8. Bxe6+ {[%clk
0:02:51.4]} 8... Kxe6 {[%clk 0:02:20.1]} 9. O-O {[%clk 0:02:46.8]} 9... Kf7
{[%clk 0:02:19.5]} 10. f4 {[%clk 0:02:47.1]} 10... Kg8 {[%clk 0:02:18]} 11. e5
{[%clk 0:02:47.4]} 11... dxe5 {[%clk 0:02:00.2]} 12. fxe5 {[%clk 0:02:47.5]}
12... Nd5 {[%clk 0:02:00.3]} 13. Ne4 {[%clk 0:02:47]} 13... Nc6 {[%clk
0:01:50.7]} 14. c3 {[%clk 0:02:41.4]} 14... Rf8 {[%clk 0:01:49.5]} 15. Qg4
{[%clk 0:02:28.7]} 15... Rxf1+ {[%clk 0:01:40.3]} 16. Kxf1 {[%clk 0:02:28.2]}
16... Qc8 {[%clk 0:01:28.2]} 17. Qg3 {[%clk 0:02:17.3]} 17... Qf5+ {[%clk
0:01:26.1]} 18. Nf2 {[%clk 0:02:13.2]} 18... Rf8 {[%clk 0:01:19.1]} 19. Bd2
{[%clk 0:02:06.8]} 19... Qc2 {[%clk 0:00:53.4]} 20. Be1 {[%clk 0:01:59.9]} 20...
Qxb2 {[%clk 0:00:41]} 21. Rd1 {[%clk 0:01:59.8]} 21... Qb5+ {[%clk 0:00:29.6]}
22. Kg1 {[%clk 0:01:59]} 22... Qe2 {[%clk 0:00:29.4]} 23. Rb1 {[%clk 0:01:56.8]}
23... Na5 {[%clk 0:00:23.8]} 24. Qh3 {[%clk 0:01:43.8]} 24... Ne3 {[%clk
0:00:19.1]} 0-1

[Event "Betsys MČR v online bleskovém šachu 2021"]
[Site "Chess.com"]
[Date "2021.04.17"]
[Round "9"]
[White "Klapuch05"]
[Black "Jaja15F"]
[Result "1-0"]
[WhiteElo "1563"]
[BlackElo "1138"]
[TimeControl "180+1"]
[EndTime "10:28:43 PDT"]
[Termination "Uživatel Klapuch05 zvítězil matem"]

1. e4 {[%clk 0:03:00.9]} 1... e5 {[%clk 0:02:58.1]} 2. Nf3 {[%clk 0:03:01.1]}
2... Nc6 {[%clk 0:02:56.5]} 3. d4 {[%clk 0:03:01.6]} 3... exd4 {[%clk
0:02:52.8]} 4. Nxd4 {[%clk 0:03:01.4]} 4... Nf6 {[%clk 0:02:52]} 5. Nxc6 {[%clk
0:03:00.9]} 5... dxc6 {[%clk 0:02:50.6]} 6. Qxd8+ {[%clk 0:02:59.3]} 6... Kxd8
{[%clk 0:02:50.6]} 7. Nc3 {[%clk 0:02:59.5]} 7... Bb4 {[%clk 0:02:48.3]} 8. Bd2
{[%clk 0:02:56.6]} 8... Bxc3 {[%clk 0:02:44.9]} 9. Bxc3 {[%clk 0:02:56.4]} 9...
Nxe4 {[%clk 0:02:44.3]} 10. O-O-O+ {[%clk 0:02:55.5]} 10... Ke7 {[%clk
0:02:38.3]} 11. Re1 {[%clk 0:02:53.6]} 11... Bf5 {[%clk 0:02:27.8]} 12. f3
{[%clk 0:02:32.4]} 12... Kd6 {[%clk 0:02:09.7]} 13. fxe4 {[%clk 0:02:29.7]}
13... Be6 {[%clk 0:02:06.9]} 14. Bxg7 {[%clk 0:02:27.3]} 14... Rhg8 {[%clk
0:02:06.3]} 15. Rd1+ {[%clk 0:02:24.9]} 15... Ke7 {[%clk 0:02:03.9]} 16. Bc3
{[%clk 0:02:22.9]} 16... Bxa2 {[%clk 0:02:02.7]} 17. b3 {[%clk 0:02:19]} 17...
Rad8 {[%clk 0:01:52.2]} 18. Rxd8 {[%clk 0:02:06.4]} 18... Rxd8 {[%clk 0:01:48]}
19. Kb2 {[%clk 0:02:05.9]} 19... Bxb3 {[%clk 0:01:44]} 20. cxb3 {[%clk
0:02:05.3]} 20... Rd1 {[%clk 0:01:41.9]} 21. Kc2 {[%clk 0:02:00.2]} 21... Rd7
{[%clk 0:01:37]} 22. Be2 {[%clk 0:01:58.1]} 22... Rd6 {[%clk 0:01:36.1]} 23. Bb4
{[%clk 0:01:56.5]} 23... c5 {[%clk 0:01:30.8]} 24. Bxc5 {[%clk 0:01:56.4]} 24...
b6 {[%clk 0:01:30.8]} 25. Bxd6+ {[%clk 0:01:56.6]} 25... Kxd6 {[%clk 0:01:30.5]}
26. Rf1 {[%clk 0:01:57.5]} 26... Ke6 {[%clk 0:01:29.8]} 27. Rf5 {[%clk
0:01:57.9]} 27... f6 {[%clk 0:01:27.4]} 28. Bc4+ {[%clk 0:01:58.3]} 28... Ke7
{[%clk 0:01:25.5]} 29. Rh5 {[%clk 0:01:59.2]} 29... Kd6 {[%clk 0:01:22.2]} 30.
Rxh7 {[%clk 0:01:59.4]} 30... c5 {[%clk 0:01:21.6]} 31. Rf7 {[%clk 0:01:59.5]}
31... Ke5 {[%clk 0:01:20.6]} 32. h4 {[%clk 0:01:58.8]} 32... Kxe4 {[%clk
0:01:20.5]} 33. h5 {[%clk 0:01:58.7]} 33... Kf5 {[%clk 0:01:19.5]} 34. Rg7
{[%clk 0:01:58.9]} 34... Kf4 {[%clk 0:01:18.6]} 35. h6 {[%clk 0:01:59.2]} 35...
Kf5 {[%clk 0:01:17.6]} 36. h7 {[%clk 0:01:59.8]} 36... Kf4 {[%clk 0:01:17.7]}
37. h8=Q {[%clk 0:01:59.3]} 37... Kf5 {[%clk 0:00:45.7]} 38. Qh5+ {[%clk
0:01:57.8]} 38... Kf4 {[%clk 0:00:45.8]} 39. Rg4+ {[%clk 0:01:57.8]} 39... Ke3
{[%clk 0:00:45.6]} 40. Qh3+ {[%clk 0:01:57.7]} 40... Kf2 {[%clk 0:00:43]} 41.
Qf3+ {[%clk 0:01:57.7]} 41... Kg1 {[%clk 0:00:40.3]} 42. Rh4 {[%clk 0:01:54.7]}
42... b5 {[%clk 0:00:37.2]} 43. Qf1# {[%clk 0:01:54.8]} 1-0

[Event "Betsys MČR v online bleskovém šachu 2021"]
[Site "Chess.com"]
[Date "2021.04.17"]
[Round "9"]
[White "sajmon8"]
[Black "KatkaZ"]
[Result "1-0"]
[WhiteElo "1667"]
[BlackElo "1841"]
[TimeControl "180+1"]
[EndTime "10:28:44 PDT"]
[Termination "Uživatel sajmon8 zvítězil matem"]

1. e4 {[%clk 0:03:00.9]} 1... c5 {[%clk 0:02:59.5]} 2. Nf3 {[%clk 0:03:00.5]}
2... e6 {[%clk 0:02:59.9]} 3. d4 {[%clk 0:03:00.8]} 3... cxd4 {[%clk 0:03:00.4]}
4. Nxd4 {[%clk 0:03:00.5]} 4... a6 {[%clk 0:03:00.9]} 5. Nc3 {[%clk 0:03:00.8]}
5... Qc7 {[%clk 0:03:01.4]} 6. Be3 {[%clk 0:03:00.1]} 6... Nf6 {[%clk
0:03:01.3]} 7. f3 {[%clk 0:02:58.8]} 7... Bb4 {[%clk 0:03:00.8]} 8. Qd2 {[%clk
0:02:57.5]} 8... d5 {[%clk 0:03:00.4]} 9. O-O-O {[%clk 0:02:50]} 9... e5 {[%clk
0:02:51.6]} 10. Nf5 {[%clk 0:02:42.9]} 10... Bxf5 {[%clk 0:02:50.3]} 11. exf5
{[%clk 0:02:26.7]} 11... d4 {[%clk 0:02:49.6]} 12. Bxd4 {[%clk 0:02:22.3]} 12...
exd4 {[%clk 0:02:48]} 13. Re1+ {[%clk 0:02:18]} 13... Be7 {[%clk 0:02:42.9]} 14.
Qxd4 {[%clk 0:02:16.4]} 14... O-O {[%clk 0:02:34.3]} 15. g4 {[%clk 0:02:03.9]}
15... Nc6 {[%clk 0:02:31.7]} 16. Qf2 {[%clk 0:01:56.9]} 16... Bd6 {[%clk
0:02:27.9]} 17. g5 {[%clk 0:01:54.6]} 17... Bf4+ {[%clk 0:02:25.2]} 18. Kb1
{[%clk 0:01:52.3]} 18... Bxg5 {[%clk 0:02:24.2]} 19. Rg1 {[%clk 0:01:50.4]}
19... h6 {[%clk 0:02:11.8]} 20. h4 {[%clk 0:01:41.9]} 20... Bf4 {[%clk
0:02:10.9]} 21. Qg2 {[%clk 0:01:33.7]} 21... Nh5 {[%clk 0:02:02.9]} 22. Qg4
{[%clk 0:01:13.2]} 22... g6 {[%clk 0:01:53.2]} 23. fxg6 {[%clk 0:01:04.9]} 23...
fxg6 {[%clk 0:01:49.8]} 24. Qxg6+ {[%clk 0:00:47.7]} 24... Ng7 {[%clk
0:01:47.3]} 25. Bc4+ {[%clk 0:00:36.4]} 25... Kh8 {[%clk 0:01:45.6]} 26. Nd5
{[%clk 0:00:29.7]} 26... Qd6 {[%clk 0:01:27]} 27. Qxg7# {[%clk 0:00:20.9]} 1-0